Departmental Area,Entity,Payment Date,Expense type,Expense Area,Supplier Name,Payment Reference,    Invoice Distribution Amount    ,Description,Supplier Type,Expenditure Type
UK Statistics Family,Office for National Statistics,01/09/2022,Exp - Purchase Of Goods/Services - Contractors,Beyond 2021 Research And Design,Concept Information Technology Ltd T/A Concept Resourcing,238880," 8,031.80 ",Information Management Services,Large,Programme Expenditure
UK Statistics Family,Office for National Statistics,01/09/2022,Exp - Short-Term Contract & Agency Staff - Full Cost,Business Change Support,Concept Information Technology Ltd T/A Concept Resourcing,238880," 5,148.18 ",Information Management Services,Large,Programme Expenditure
UK Statistics Family,Office for National Statistics,01/09/2022,Exp - Short-Term Contract & Agency Staff - Full Cost,Crime Income And Wealth,Concept Information Technology Ltd T/A Concept Resourcing,238880," 3,710.40 ",Information Management Services,Large,Programme Expenditure
UK Statistics Family,Office for National Statistics,01/09/2022,Exp - Purchase Of Goods/Services - Contractors,Census & Soc Methodology Dd,Concept Information Technology Ltd T/A Concept Resourcing,238880," 11,906.80 ",Information Management Services,Large,Programme Expenditure
UK Statistics Family,Office for National Statistics,01/09/2022,Exp - Short-Term Contract & Agency Staff - Full Cost,Public Sector And Households,Concept Information Technology Ltd T/A Concept Resourcing,238880, 807.01 ,Information Management Services,Large,Programme Expenditure
UK Statistics Family,Office for National Statistics,01/09/2022,Exp - Short-Term Contract & Agency Staff - Full Cost,Public Sector And Households,Concept Information Technology Ltd T/A Concept Resourcing,238880, 27.83 ,Information Management Services,Large,Programme Expenditure
UK Statistics Family,Office for National Statistics,01/09/2022,Exp - Purchase Of Goods/Services - Contractors,Testing,La International,238891," 4,165.02 ",Information Management Services,SME,Programme Expenditure
UK Statistics Family,Office for National Statistics,01/09/2022,Exp - Purchase Of Goods/Services - Contractors,Digital Publishing,La International,238891," 10,780.20 ",Information Management Services,SME,Programme Expenditure
UK Statistics Family,Office for National Statistics,01/09/2022,Exp - Purchase Of Goods/Services - Contractors,INTEGRATED DATA STRATEGY AND DELIVERY,La International,238891," 6,900.00 ",Information Management Services,SME,Programme Expenditure
UK Statistics Family,Office for National Statistics,01/09/2022,Exp - Purchase Of Goods/Services - Contractors,Data Architecture,La International,238891," 11,213.50 ",Information Management Services,SME,Programme Expenditure
UK Statistics Family,Office for National Statistics,01/09/2022,Hosting,CLOUD ARCHITECTURE,Amazon Web Services Inc,238901," 263,910.16 ",Information Management Services,Large,Programme Expenditure
UK Statistics Family,Office for National Statistics,01/09/2022,Exp - Purchase Of Goods/Services - Contractors,BUSINESS STRATEGY PERFORMANCE AND PMO,SmartSourcing Ltd,238904," 8,721.72 ",Information Management Services,SME,Programme Expenditure
UK Statistics Family,Office for National Statistics,01/09/2022,Exp - Short-Term Contract & Agency Staff - Full Cost,Data Architecture,SmartSourcing Ltd,238904," 2,930.40 ",Information Management Services,SME,Programme Expenditure
UK Statistics Family,Office for National Statistics,01/09/2022,Exp - Purchase Of Goods/Services - Contractors,IT Operations,SmartSourcing Ltd,238904," 14,984.64 ",Information Management Services,SME,Programme Expenditure
UK Statistics Family,Office for National Statistics,01/09/2022,Exp - Purchase Of Goods/Services - Contractors,Testing,Parity Resources Limited,238908," 18,000.00 ",Information Management Services,Large,Programme Expenditure
UK Statistics Family,Office for National Statistics,01/09/2022,Exp - Purchase Of Goods/Services - Contractors,Data Architecture,Parity Resources Limited,238908," 9,621.00 ",Information Management Services,Large,Programme Expenditure
UK Statistics Family,Office for National Statistics,01/09/2022,Exp - Purchase Of Goods/Services - Contractors,CDIO UNGP,Parity Resources Limited,238908," 9,201.00 ",Information Management Services,Large,Programme Expenditure
UK Statistics Family,Office for National Statistics,02/09/2022,Exp - Purchase Of Goods/Services - Incentive Payments,Covid Infection Survey,Sodexo Motivation Solutions U.K. ltd,239106," 104,443.20 ",Survey Response Incentive Vouchers,Large,Programme Expenditure
UK Statistics Family,Office for National Statistics,02/09/2022,Exp - Purchase Of Goods/Services - Contractors,Strategy And Architecture,LA FOSSE ASSOCIATES LIMITED,239107," 26,250.00 ",Information Management Services,Large,Programme Expenditure
UK Statistics Family,Office for National Statistics,02/09/2022,Exp - Purchase Of Goods/Services - Contractors,Strategy And Architecture,LA FOSSE ASSOCIATES LIMITED,239107," 25,804.80 ",Information Management Services,Large,Programme Expenditure
UK Statistics Family,Office for National Statistics,02/09/2022,Exp - Short-Term Contract & Agency Staff - Full Cost,Covid Infection Survey,Talent International,239110," 5,902.24 ",Information Management Services,SME,Programme Expenditure
UK Statistics Family,Office for National Statistics,02/09/2022,Exp - Purchase Of Goods/Services - Contractors,Covid Infection Survey,Talent International,239110," 27,349.80 ",Information Management Services,SME,Programme Expenditure
UK Statistics Family,Office for National Statistics,02/09/2022,Exp - Purchase Of Goods/Services - Contractors,Data Architecture,Talent International,239110," 29,519.78 ",Information Management Services,SME,Programme Expenditure
UK Statistics Family,Office for National Statistics,05/09/2022,Exp - Short-Term Contract & Agency Staff - Full Cost,2023 CENSUS DATA TRANSFORMATION,Concept Information Technology Ltd T/A Concept Resourcing,239223," 4,461.40 ",Information Management Services,Large,Programme Expenditure
UK Statistics Family,Office for National Statistics,05/09/2022,Exp - Short-Term Contract & Agency Staff - Full Cost,Covid Infection Survey,Concept Information Technology Ltd T/A Concept Resourcing,239223," 2,375.18 ",Information Management Services,Large,Programme Expenditure
UK Statistics Family,Office for National Statistics,05/09/2022,Exp - Short-Term Contract & Agency Staff - Full Cost,Covid Infection Survey,Concept Information Technology Ltd T/A Concept Resourcing,239223," 5,075.81 ",Information Management Services,Large,Programme Expenditure
UK Statistics Family,Office for National Statistics,05/09/2022,Exp - Short-Term Contract & Agency Staff - Full Cost,N A Coordination,Concept Information Technology Ltd T/A Concept Resourcing,239223," 3,151.06 ",Information Management Services,Large,Programme Expenditure
UK Statistics Family,Office for National Statistics,05/09/2022,Exp - Short-Term Contract & Agency Staff - Full Cost,N A Coordination,Concept Information Technology Ltd T/A Concept Resourcing,239223," 3,912.61 ",Information Management Services,Large,Programme Expenditure
UK Statistics Family,Office for National Statistics,05/09/2022,Exp - Short-Term Contract & Agency Staff - Full Cost,Ask Business Services,Concept Information Technology Ltd T/A Concept Resourcing,239223," 5,169.24 ",Information Management Services,Large,Programme Expenditure
UK Statistics Family,Office for National Statistics,05/09/2022,Exp - Short-Term Contract & Agency Staff - Full Cost,REPROGRAPHICS,Concept Information Technology Ltd T/A Concept Resourcing,239223," 4,282.80 ",Information Management Services,Large,Programme Expenditure
UK Statistics Family,Office for National Statistics,05/09/2022,Surveys,Business Outputs And Developments,Iff Research,239228," 196,906.80 ",Statistical Services,Large,Programme Expenditure
UK Statistics Family,Office for National Statistics,05/09/2022,Other Goods And Services,ONS Corporate Funds,Edenred (UK Group) Limited,239231," 43,450.00 ",Performance Reward Vouchers,Large,Programme Expenditure
UK Statistics Family,Office for National Statistics,05/09/2022,Exp - Short-Term Contract & Agency Staff - Full Cost,Data Architecture,Talent International,239234," 8,902.76 ",Information Management Services,SME,Programme Expenditure
UK Statistics Family,Office for National Statistics,05/09/2022,Exp - Purchase Of Goods/Services - Contractors,Data Architecture,Talent International,239234," 18,360.00 ",Information Management Services,SME,Programme Expenditure
UK Statistics Family,Office for National Statistics,05/09/2022,Exp - Purchase Of Goods/Services - Contractors,Data Architecture,Talent International,239234," 8,640.00 ",Information Management Services,SME,Programme Expenditure
UK Statistics Family,Office for National Statistics,06/09/2022,Exp - Purchase Of Goods/Services - IT Contractual Services,IT Operations,Scc,239389," 25,956.00 ",Information Management Services,Large,Programme Expenditure
UK Statistics Family,Office for National Statistics,06/09/2022,Telecoms,IT Operations,Cdw Limited,239402," 35,536.80 ",Information Management Services,Large,Programme Expenditure
UK Statistics Family,Office for National Statistics,07/09/2022,FM Contract Payments,Vinci Payments,Vinci Construction UK Limited,239554," 348,050.71 ",Facilities Mangement Services,Large,Programme Expenditure
UK Statistics Family,Office for National Statistics,07/09/2022,Exp - Short-Term Contract & Agency Staff - Full Cost,STRATEGY SYNTHESIS AND CO-ORDINATION,Concept Information Technology Ltd T/A Concept Resourcing,239555," 2,209.28 ",Information Management Services,Large,Programme Expenditure
UK Statistics Family,Office for National Statistics,07/09/2022,Exp - Short-Term Contract & Agency Staff - Full Cost,Prices Division,Concept Information Technology Ltd T/A Concept Resourcing,239555," 9,262.20 ",Information Management Services,Large,Programme Expenditure
UK Statistics Family,Office for National Statistics,07/09/2022,Exp - Short-Term Contract & Agency Staff - Full Cost,Prices Division,Concept Information Technology Ltd T/A Concept Resourcing,239555, 61.82 ,Information Management Services,Large,Programme Expenditure
UK Statistics Family,Office for National Statistics,07/09/2022,Exp - Short-Term Contract & Agency Staff - Full Cost,Prices Division,Concept Information Technology Ltd T/A Concept Resourcing,239555," 24,298.86 ",Information Management Services,Large,Programme Expenditure
UK Statistics Family,Office for National Statistics,07/09/2022,Exp - Seconded UK Staff - Basic Salary,Internal Audit,Bank of England,239567," 12,327.64 ",Seconded Staff,Large,Programme Expenditure
UK Statistics Family,Office for National Statistics,07/09/2022,Exp - Seconded UK Staff - Basic Salary,Prices Division,Bank of England,239567," 14,647.30 ",Seconded Staff,Large,Programme Expenditure
UK Statistics Family,Office for National Statistics,07/09/2022,Exp - Purchase Of Goods/Services - Contractors,Consultancy Management,LA FOSSE ASSOCIATES LIMITED,239569," 10,799.82 ",Information Management Services,Large,Programme Expenditure
UK Statistics Family,Office for National Statistics,07/09/2022,Exp - Purchase Of Goods/Services - Contractors,Digital Publishing,LA FOSSE ASSOCIATES LIMITED,239569," 21,030.00 ",Information Management Services,Large,Programme Expenditure
UK Statistics Family,Office for National Statistics,07/09/2022,Exp - Purchase Of Goods/Services - Contractors,Data Architecture,LA FOSSE ASSOCIATES LIMITED,239569," 27,000.00 ",Information Management Services,Large,Programme Expenditure
UK Statistics Family,Office for National Statistics,07/09/2022,Exp - Purchase Of Goods And Services Consultants,"SUB-NATIONAL STATISTICS AND ANALYSIS
",Matt Hamnet & Associates Ltd,239576," 120,060.00 ",Consultancy,SME,Programme Expenditure
UK Statistics Family,Office for National Statistics,08/09/2022,Exp - Short-Term Contract & Agency Staff - Full Cost,Productivity Research And Professional Development,Concept Information Technology Ltd T/A Concept Resourcing,239661," 7,428.12 ",Information Management Services,Large,Programme Expenditure
UK Statistics Family,Office for National Statistics,08/09/2022,Exp - Short-Term Contract & Agency Staff - Full Cost,Business Architecture Transformation And Statistical Strategy,Concept Information Technology Ltd T/A Concept Resourcing,239661," 4,118.54 ",Information Management Services,Large,Programme Expenditure
UK Statistics Family,Office for National Statistics,08/09/2022,Exp - Short-Term Contract & Agency Staff - Full Cost,Business Architecture Transformation And Statistical Strategy,Concept Information Technology Ltd T/A Concept Resourcing,239661," 4,035.06 ",Information Management Services,Large,Programme Expenditure
UK Statistics Family,Office for National Statistics,08/09/2022,Exp - Short-Term Contract & Agency Staff - Full Cost,Public Sector And Households,Concept Information Technology Ltd T/A Concept Resourcing,239661," 2,921.94 ",Information Management Services,Large,Programme Expenditure
UK Statistics Family,Office for National Statistics,08/09/2022,Exp - Short-Term Contract & Agency Staff - Full Cost,Prices Division,Concept Information Technology Ltd T/A Concept Resourcing,239661," 4,736.33 ",Information Management Services,Large,Programme Expenditure
UK Statistics Family,Office for National Statistics,08/09/2022,Exp - Short-Term Contract & Agency Staff - Full Cost,Labour Market,Concept Information Technology Ltd T/A Concept Resourcing,239661," 4,118.54 ",Information Management Services,Large,Programme Expenditure
UK Statistics Family,Office for National Statistics,08/09/2022,Telecoms,IT Operations,Bt Global Services,239662," 47,915.94 ",Telecommunications,Large,Programme Expenditure
UK Statistics Family,Office for National Statistics,08/09/2022,Exp - Purchase Of Goods/Services - IT Contractual Services,IT Operations,Ibm United Kingdom Ltd,239663," 50,158.80 ",Information Management Services,Large,Programme Expenditure
UK Statistics Family,Office for National Statistics,08/09/2022,Exp - Purchase Of Goods/Services - Contractors,Testing,Certes Computing Ltd,239666," 14,372.69 ",Information Management Services,SME,Programme Expenditure
UK Statistics Family,Office for National Statistics,08/09/2022,Exp - Purchase Of Goods/Services - Contractors,Digital Media,Certes Computing Ltd,239666," 10,888.50 ",Information Management Services,SME,Programme Expenditure
UK Statistics Family,Office for National Statistics,08/09/2022,Exp - Purchase Of Goods/Services - Contractors,Data Architecture,Certes Computing Ltd,239666," 29,834.20 ",Information Management Services,SME,Programme Expenditure
UK Statistics Family,Office for National Statistics,08/09/2022,Exp - Purchase Of Goods/Services - Contractors,DATA ENGINEERING OPERATIONS AND DELIVERY,Certes Computing Ltd,239666," 17,421.60 ",Information Management Services,SME,Programme Expenditure
UK Statistics Family,Office for National Statistics,08/09/2022,Hospitality,Property Services,BaxterStorey,239672," 38,545.08 ",Catering Services,Large,Programme Expenditure
UK Statistics Family,Office for National Statistics,08/09/2022,Exp - Short-Term Contract & Agency Staff - Full Cost,Business Architecture Transformation And Statistical Strategy,Malikshaw Interim & Executive,239673," 5,972.16 ",Information Management Services,SME,Programme Expenditure
UK Statistics Family,Office for National Statistics,08/09/2022,Exp - Purchase Of Goods/Services - Contractors,Data Architecture,Malikshaw Interim & Executive,239673," 19,219.20 ",Information Management Services,SME,Programme Expenditure
UK Statistics Family,Office for National Statistics,08/09/2022,Exp - Purchase Of Goods/Services - Contractors,Data Architecture,Malikshaw Interim & Executive,239673," 16,891.20 ",Information Management Services,SME,Programme Expenditure
UK Statistics Family,Office for National Statistics,08/09/2022,Exp - Purchase Of Goods/Services - IT Contractual Services,CDIO UNGP,CTS (Cloud Technology Solutions Ltd),239674," 180,714.00 ",Information Management Services,Large,Programme Expenditure
UK Statistics Family,Office for National Statistics,08/09/2022,Exp - Purchase Of Goods/Services - Contractors,Data Architecture,SmartSourcing Ltd,239681," 30,750.24 ",Information Management Services,SME,Programme Expenditure
UK Statistics Family,Office for National Statistics,08/09/2022,Exp - Purchase Of Goods/Services - Contractors,IT Applications,SmartSourcing Ltd,239681," 10,080.00 ",Information Management Services,SME,Programme Expenditure
UK Statistics Family,Office for National Statistics,08/09/2022,Exp - Purchase Of Goods/Services - Contractors,IT Operations,SmartSourcing Ltd,239681," 10,909.25 ",Information Management Services,SME,Programme Expenditure
UK Statistics Family,Office for National Statistics,08/09/2022,Exp - Purchase Of Goods/Services - Contractors,DATA ENGINEERING OPERATIONS AND DELIVERY,SmartSourcing Ltd,239681," 13,184.64 ",Information Management Services,SME,Programme Expenditure
UK Statistics Family,Office for National Statistics,08/09/2022,Exp - Purchase Of Goods/Services - Contractors,Data Capability,Parity Resources Limited,239682," 7,447.41 ",Information Management Services,Large,Programme Expenditure
UK Statistics Family,Office for National Statistics,08/09/2022,Exp - Purchase Of Goods/Services - Contractors,Testing,Parity Resources Limited,239682," 2,699.22 ",Information Management Services,Large,Programme Expenditure
UK Statistics Family,Office for National Statistics,08/09/2022,Exp - Purchase Of Goods/Services - Contractors,Programme Support,Parity Resources Limited,239682," 2,395.04 ",Information Management Services,Large,Programme Expenditure
UK Statistics Family,Office for National Statistics,08/09/2022,Exp - Short-Term Contract & Agency Staff - Full Cost,Recruitment ,Parity Resources Limited,239682, 732.60 ,Information Management Services,Large,Programme Expenditure
UK Statistics Family,Office for National Statistics,08/09/2022,Exp - Purchase Of Goods/Services - Contractors,CLOUD ARCHITECTURE,Parity Resources Limited,239682," 3,600.00 ",Information Management Services,Large,Programme Expenditure
UK Statistics Family,Office for National Statistics,08/09/2022,Exp - Purchase Of Goods/Services - Contractors,Strategy And Architecture,Parity Resources Limited,239682," 4,210.50 ",Information Management Services,Large,Programme Expenditure
UK Statistics Family,Office for National Statistics,08/09/2022,Exp - Purchase Of Goods/Services - Contractor Travel,Strategy And Architecture,Parity Resources Limited,239682, 170.69 ,Information Management Services,Large,Programme Expenditure
UK Statistics Family,Office for National Statistics,08/09/2022,Exp - Purchase Of Goods/Services - Contractors,Tech Delivery Next Gen IT And Infrastructure,Parity Resources Limited,239682," 4,210.50 ",Information Management Services,Large,Programme Expenditure
UK Statistics Family,Office for National Statistics,08/09/2022,Exp - Purchase Of Goods/Services - Contractors,IT Applications,Parity Resources Limited,239682," 29,746.80 ",Information Management Services,Large,Programme Expenditure
UK Statistics Family,Office for National Statistics,08/09/2022,Exp - Purchase Of Goods/Services - Contractors,DATA ENGINEERING OPERATIONS AND DELIVERY,Parity Resources Limited,239682," 15,642.00 ",Information Management Services,Large,Programme Expenditure
UK Statistics Family,Office for National Statistics,09/09/2022,IT (Owned) At Cost - Additions,IT Operations,Computacenter (Uk) Limited,239782," 36,899.52 ",Computers and Peripherals,Large,Programme Expenditure
UK Statistics Family,Office for National Statistics,09/09/2022,End User Software And Hardware,IT Operations,Computacenter (Uk) Limited,239782," 3,290.87 ",Computers and Peripherals,Large,Programme Expenditure
UK Statistics Family,Office for National Statistics,09/09/2022,Exp - Purchase Of Goods/Services - Incentive Payments,Covid Infection Survey,Sodexo Motivation Solutions U.K. ltd,239786," 82,047.60 ",Survey Response Incentive Vouchers,Large,Programme Expenditure
UK Statistics Family,Office for National Statistics,09/09/2022,Surveys,Covid Infection Survey,IQVIA Limited,239788," 324,400.98 ",Statistical Services,Large,Programme Expenditure
UK Statistics Family,Office for National Statistics,12/09/2022,Exp - Purchase Of Goods/Services - Contractors,Testing,La International,239844," 42,646.30 ",Information Management Services,SME,Programme Expenditure
UK Statistics Family,Office for National Statistics,12/09/2022,Exp - Purchase Of Goods/Services - Contractors,Testing,La International,239844," 2,654.12 ",Information Management Services,SME,Programme Expenditure
UK Statistics Family,Office for National Statistics,12/09/2022,Exp - Purchase Of Goods/Services - Contractors,Consultancy Management,La International,239844," 1,472.47 ",Information Management Services,SME,Programme Expenditure
UK Statistics Family,Office for National Statistics,12/09/2022,Exp - Purchase Of Goods/Services - IT Contractual Services,PARTNERSHIP DEVELOPMENT,CTS (Cloud Technology Solutions Ltd),239848," 68,220.36 ",Information Management Services,Large,Programme Expenditure
UK Statistics Family,Office for National Statistics,12/09/2022,Exp - Purchase Of Goods/Services - IT Contractual Services,Tech Delivery Legacy Sp,CTS (Cloud Technology Solutions Ltd),239848," 153,176.64 ",Information Management Services,Large,Programme Expenditure
UK Statistics Family,Office for National Statistics,12/09/2022,Surveys,ECONOMIC CHANGE,Bureau Van Dijk Electronic Publishing,239849," 70,500.00 ",Data Acquisition,SME,Programme Expenditure
UK Statistics Family,Office for National Statistics,12/09/2022,Exp - Purchase Of Goods/Services - Contractors,Testing,LA FOSSE ASSOCIATES LIMITED,239851," 7,560.00 ",Information Management Services,Large,Programme Expenditure
UK Statistics Family,Office for National Statistics,12/09/2022,Exp - Purchase Of Goods/Services - Contractors,CDIO UNGP,LA FOSSE ASSOCIATES LIMITED,239851," 31,920.00 ",Information Management Services,Large,Programme Expenditure
UK Statistics Family,Office for National Statistics,12/09/2022,Exp - Purchase Of Goods/Services - Contractors,Digital Delivery,LA FOSSE ASSOCIATES LIMITED,239851," 14,400.00 ",Information Management Services,Large,Programme Expenditure
UK Statistics Family,Office for National Statistics,12/09/2022,Exp - Purchase Of Goods/Services - IT Contractual Services,Digital Delivery,Armakuni Ltd,239853," 36,960.00 ",Information Management Services,SME,Programme Expenditure
UK Statistics Family,Office for National Statistics,12/09/2022,Exp - Purchase Of Goods/Services - Contractors,Data Architecture,Talent International,239855," 16,800.00 ",Information Management Services,SME,Programme Expenditure
UK Statistics Family,Office for National Statistics,12/09/2022,Exp - Purchase Of Goods/Services - Contractors,Strategy And Architecture,Talent International,239855," 1,020.00 ",Information Management Services,SME,Programme Expenditure
UK Statistics Family,Office for National Statistics,12/09/2022,Exp - Purchase Of Goods/Services - Contractors,Strategy And Architecture,Talent International,239855," 16,800.00 ",Information Management Services,SME,Programme Expenditure
UK Statistics Family,Office for National Statistics,12/09/2022,Exp - Purchase Of Goods/Services - Contractors,Tech Delivery Legacy Sp,Talent International,239855," 19,176.00 ",Information Management Services,SME,Programme Expenditure
UK Statistics Family,Office for National Statistics,12/09/2022,Exp - Purchase Of Goods/Services - Contractors,IT Applications,Talent International,239855," 25,663.20 ",Information Management Services,SME,Programme Expenditure
UK Statistics Family,Office for National Statistics,13/09/2022,Exp - Purchase Of Goods/Services - IT Contractual Services,IT Operations,Ibm United Kingdom Ltd,240055," 74,496.00 ",Information Management Services,Large,Programme Expenditure
UK Statistics Family,Office for National Statistics,13/09/2022,Exp - Purchase Of Goods/Services - Contractors,Security Advisory,Certes Computing Ltd,240058," 16,626.61 ",Information Management Services,SME,Programme Expenditure
UK Statistics Family,Office for National Statistics,13/09/2022,Exp - Purchase Of Goods/Services - Contractors,Security Advisory,Certes Computing Ltd,240058," 10,824.53 ",Information Management Services,SME,Programme Expenditure
UK Statistics Family,Office for National Statistics,13/09/2022,Exp - Purchase Of Goods/Services - Contractors,Strategy And Architecture,Certes Computing Ltd,240058," 28,260.78 ",Information Management Services,SME,Programme Expenditure
UK Statistics Family,Office for National Statistics,13/09/2022,Exp - Purchase Of Goods/Services - Contractors,Tech Delivery Legacy Sp,Certes Computing Ltd,240058," 8,400.00 ",Information Management Services,SME,Programme Expenditure
UK Statistics Family,Office for National Statistics,13/09/2022,Exp - Purchase Of Goods/Services - Contractors,IT Applications,Certes Computing Ltd,240058," 32,999.14 ",Information Management Services,SME,Programme Expenditure
UK Statistics Family,Office for National Statistics,13/09/2022,Exp - Purchase Of Goods/Services - Contractors,Testing,La International,240059," 7,599.51 ",Information Management Services,SME,Programme Expenditure
UK Statistics Family,Office for National Statistics,13/09/2022,Exp - Purchase Of Goods/Services - Contractors,Testing,La International,240059," 2,654.12 ",Information Management Services,SME,Programme Expenditure
UK Statistics Family,Office for National Statistics,13/09/2022,Exp - Purchase Of Goods/Services - Contractors,STRATEGY SYNTHESIS AND CO-ORDINATION,La International,240059," 2,525.52 ",Information Management Services,SME,Programme Expenditure
UK Statistics Family,Office for National Statistics,13/09/2022,Exp - Purchase Of Goods/Services - Contractors,Security And Information Management Saim,La International,240059," 5,700.00 ",Information Management Services,SME,Programme Expenditure
UK Statistics Family,Office for National Statistics,13/09/2022,Exp - Purchase Of Goods/Services - Contractors,CLOUD ARCHITECTURE,La International,240059," 16,660.08 ",Information Management Services,SME,Programme Expenditure
UK Statistics Family,Office for National Statistics,13/09/2022,Exp - Purchase Of Goods/Services - Contractors,Tech Delivery Legacy Sp,La International,240059," 4,165.02 ",Information Management Services,SME,Programme Expenditure
UK Statistics Family,Office for National Statistics,13/09/2022,Exp - Purchase Of Goods/Services - Contractors,IT Applications,La International,240059," 5,190.26 ",Information Management Services,SME,Programme Expenditure
UK Statistics Family,Office for National Statistics,13/09/2022,Exp - Purchase Of Goods/Services - Contractors,IT Operations,La International,240059," 24,643.20 ",Information Management Services,SME,Programme Expenditure
UK Statistics Family,Office for National Statistics,13/09/2022,Stationery,Lodgecard,Royal Bank of Scotland,240061," 1,031.55 ",Multiple Procurement Card Purchases  - Stationery ,Large,Programme Expenditure
UK Statistics Family,Office for National Statistics,13/09/2022,Other Goods And Services,GPC,Royal Bank of Scotland,240061," 53,426.17 ",Multiple Procurement Card Purchases - other goods/services  ,Large,Programme Expenditure
UK Statistics Family,Office for National Statistics,13/09/2022,Travel And Subsistence,Car Hire,Royal Bank of Scotland,240061," 13,267.02 ",Multiple Procurement Card Purchases - Vehicle Hire  ,Large,Programme Expenditure
UK Statistics Family,Office for National Statistics,13/09/2022,IT (Owned) At Cost - Additions,IT Operations,Computacenter (Uk) Limited,240062," 138,472.78 ",Software Licenses,Large,Programme Expenditure
UK Statistics Family,Office for National Statistics,14/09/2022,"ICT Outsourcing, Maintenance And Support",Finance,Scc,240190," 8,965.28 ",Software Licenses,Large,Programme Expenditure
UK Statistics Family,Office for National Statistics,14/09/2022,Exp - Purchase Of Goods/Services - Other ICT Costs Software,Finance,Scc,240190," 28,737.79 ",Software Licenses,Large,Programme Expenditure
UK Statistics Family,Office for National Statistics,14/09/2022,Exp - Purchase Of Goods/Services - IT Contractual Services,Security Operations,Scc,240190," 20,085.00 ",Software Licenses,Large,Programme Expenditure
UK Statistics Family,Office for National Statistics,14/09/2022,Exp - Purchase Of Goods/Services - IT Contractual Services,IT Operations,Ibm United Kingdom Ltd,240192," 98,493.00 ",Information Management Services,Large,Programme Expenditure
UK Statistics Family,Office for National Statistics,14/09/2022,Travel And Subsistence,CWT Trainline,Corporate Travel Management ,240193," 60,755.43 ",Travel and Accommodation,SME,Programme Expenditure
UK Statistics Family,Office for National Statistics,14/09/2022,Exp - Purchase Of Goods/Services - Contractors,Digital Publishing,Malikshaw Interim & Executive,240201," 9,282.28 ",Information Management Services,SME,Programme Expenditure
UK Statistics Family,Office for National Statistics,14/09/2022,Exp - Purchase Of Goods/Services - Contractors,IT Operations,Malikshaw Interim & Executive,240201," 5,100.00 ",Information Management Services,SME,Programme Expenditure
UK Statistics Family,Office for National Statistics,14/09/2022,Exp - Purchase Of Goods/Services - Contractors,DATA ENGINEERING OPERATIONS AND DELIVERY,Malikshaw Interim & Executive,240201," 18,072.00 ",Information Management Services,SME,Programme Expenditure
UK Statistics Family,Office for National Statistics,14/09/2022,Exp - Purchase Of Goods And Services Consultants,Security Advisory,Bridewell Consulting Limited,240204," 74,100.00 ",Consultancy,SME,Programme Expenditure
UK Statistics Family,Office for National Statistics,14/09/2022,Exp - Purchase Of Goods/Services - Contractors,Covid Infection Survey,Talent International,240211," 6,749.91 ",Information Management Services,SME,Programme Expenditure
UK Statistics Family,Office for National Statistics,14/09/2022,Exp - Purchase Of Goods/Services - Contractors,Covid Infection Survey,Talent International,240211," 15,749.79 ",Information Management Services,SME,Programme Expenditure
UK Statistics Family,Office for National Statistics,14/09/2022,Exp - Purchase Of Goods/Services - Contractors,Digital Publishing,Talent International,240211," 14,580.00 ",Information Management Services,SME,Programme Expenditure
UK Statistics Family,Office for National Statistics,14/09/2022,Exp - Purchase Of Goods/Services - Contractors,International Trade And Transactions,Talent International,240211," 9,072.00 ",Information Management Services,SME,Programme Expenditure
UK Statistics Family,Office for National Statistics,14/09/2022,Exp - Purchase Of Goods/Services - Contractors,IT Operations,Talent International,240211," 4,200.00 ",Information Management Services,SME,Programme Expenditure
UK Statistics Family,Office for National Statistics,14/09/2022,IT (Owned) At Cost - Additions,IT Operations,BT PLC,240213," 298,835.52 ",Information Management Services,Large,Programme Expenditure
UK Statistics Family,Office for National Statistics,15/09/2022,Accommodation & Building Management,Property London,Westminster City Council,240347," 77,672.00 ",Non-domestic Rates,Large,Programme Expenditure
UK Statistics Family,Office for National Statistics,15/09/2022,Postage,Property Titchfield,Pitney Bowes Ltd,240349," 100,019.36 ",Postage Services,Large,Programme Expenditure
UK Statistics Family,Office for National Statistics,15/09/2022,Exp - Purchase Of Goods/Services - Contractors,Data Architecture,La International,240352," 29,867.78 ",Information Management Services,SME,Programme Expenditure
UK Statistics Family,Office for National Statistics,15/09/2022,Exp - Purchase Of Goods And Services Consultants,2023 CENSUS DATA TRANSFORMATION,The Sensible Code Company,240356," 124,690.80 ",Statistical Services,SME,Programme Expenditure
UK Statistics Family,Office for National Statistics,15/09/2022,Exp - Purchase Of Goods/Services - Contractors,Testing,Parity Resources Limited,240358," 6,057.61 ",Information Management Services,Large,Programme Expenditure
UK Statistics Family,Office for National Statistics,15/09/2022,Exp - Purchase Of Goods/Services - Contractors,Programme Support,Parity Resources Limited,240358," 2,395.04 ",Information Management Services,Large,Programme Expenditure
UK Statistics Family,Office for National Statistics,15/09/2022,Exp - Purchase Of Goods/Services - Contractors,CLOUD ARCHITECTURE,Parity Resources Limited,240358," 3,600.00 ",Information Management Services,Large,Programme Expenditure
UK Statistics Family,Office for National Statistics,15/09/2022,Exp - Purchase Of Goods/Services - Contractors,CLOUD ARCHITECTURE,Parity Resources Limited,240358," 4,802.70 ",Information Management Services,Large,Programme Expenditure
UK Statistics Family,Office for National Statistics,15/09/2022,Exp - Purchase Of Goods/Services - Contractors,Strategy And Architecture,Parity Resources Limited,240358," 7,578.90 ",Information Management Services,Large,Programme Expenditure
UK Statistics Family,Office for National Statistics,15/09/2022,Exp - Purchase Of Goods/Services - Contractors,Tech Delivery Next Gen IT And Infrastructure,Parity Resources Limited,240358," 11,789.40 ",Information Management Services,Large,Programme Expenditure
UK Statistics Family,Office for National Statistics,16/09/2022,PPE - NON-PROPERTY (LEASED NON-PFI) - COST - ADDITIONS (AS LESSEE),IT Operations,Crown Hosting Data Centres Limited,240465," 66,422.74 ",Information Management Services,SME,Programme Expenditure
UK Statistics Family,Office for National Statistics,16/09/2022,Buildings Under Construction,Property Newport,Vinci Construction UK Limited,240467," 225,570.00 ",Facilities Mangement Services,Large,Programme Expenditure
UK Statistics Family,Office for National Statistics,16/09/2022,Major Works Over 25K,Property Newport,Vinci Construction UK Limited,240467," 15,140.00 ",Facilities Mangement Services,Large,Programme Expenditure
UK Statistics Family,Office for National Statistics,16/09/2022,Postage,Survey Processing Centre,DHL Parcel Ltd,240470," 58,850.29 ",Postage Services,Large,Programme Expenditure
UK Statistics Family,Office for National Statistics,16/09/2022,EXP - PURCHASE OF GOODS/SERVICES -  NON IT CONTRACTUAL PAYMENTS,ANALYTICAL ENGAGEMENT AND IMPACT,RSM Risk Assurance Services LLP,240472," 88,981.20 ",Information Management Services,SME,Programme Expenditure
UK Statistics Family,Office for National Statistics,16/09/2022,Hosting,CLOUD ARCHITECTURE,CTS (Cloud Technology Solutions Ltd),240473," 185,318.17 ",Information Management Services,Large,Programme Expenditure
UK Statistics Family,Office for National Statistics,16/09/2022,Hosting,CLOUD ARCHITECTURE,Amazon Web Services Inc,240476," 262,123.65 ",Information Management Services,Large,Programme Expenditure
UK Statistics Family,Office for National Statistics,16/09/2022,Hosting,CDIO UNGP,Amazon Web Services Inc,240476,-0.19 ,Information Management Services,Large,Programme Expenditure
UK Statistics Family,Office for National Statistics,16/09/2022,Exp - Purchase Of Goods/Services - Incentive Payments,Survey Management,Sodexo Motivation Solutions U.K. ltd,240477, 22.20 ,Survey Response Incentive Vouchers,Large,Programme Expenditure
UK Statistics Family,Office for National Statistics,16/09/2022,Exp - Purchase Of Goods/Services - Incentive Payments,Covid Infection Survey,Sodexo Motivation Solutions U.K. ltd,240477," 89,858.10 ",Survey Response Incentive Vouchers,Large,Programme Expenditure
UK Statistics Family,Office for National Statistics,16/09/2022,Telecoms,IT Operations,Freedom Communications (UK) Ltd,240478," 33,206.35 ",Information Management Services,Large,Programme Expenditure
UK Statistics Family,Office for National Statistics,20/09/2022,Exp - Purchase Of Goods/Services - Contractors,Strategy And Architecture,Certes Computing Ltd,240579," 19,800.00 ",Information Management Services,SME,Programme Expenditure
UK Statistics Family,Office for National Statistics,20/09/2022,Exp - Purchase Of Goods/Services - Contractors,Digital Delivery,Certes Computing Ltd,240579," 9,359.06 ",Information Management Services,SME,Programme Expenditure
UK Statistics Family,Office for National Statistics,20/09/2022,Exp - Purchase Of Goods/Services - IT Contractual Services,PARTNERSHIP DEVELOPMENT,CTS (Cloud Technology Solutions Ltd),240583," 167,733.00 ",Information Management Services,Large,Programme Expenditure
UK Statistics Family,Office for National Statistics,20/09/2022,Exp - Purchase Of Goods/Services - Incentive Payments,Survey Management,Sodexo Motivation Solutions U.K. ltd,240585," 4,323.93 ",Survey Response Incentive Vouchers,Large,Programme Expenditure
UK Statistics Family,Office for National Statistics,20/09/2022,Exp - Purchase Of Goods/Services - Incentive Payments,Survey Management,Sodexo Motivation Solutions U.K. ltd,240585," 5,398.19 ",Survey Response Incentive Vouchers,Large,Programme Expenditure
UK Statistics Family,Office for National Statistics,20/09/2022,Exp - Purchase Of Goods/Services - Incentive Payments,Survey Management,Sodexo Motivation Solutions U.K. ltd,240585," 3,894.68 ",Survey Response Incentive Vouchers,Large,Programme Expenditure
UK Statistics Family,Office for National Statistics,20/09/2022,Exp - Purchase Of Goods/Services - Incentive Payments,Survey Management,Sodexo Motivation Solutions U.K. ltd,240585," 79,234.79 ",Survey Response Incentive Vouchers,Large,Programme Expenditure
UK Statistics Family,Office for National Statistics,20/09/2022,Exp - Purchase Of Goods/Services - Incentive Payments,Survey Management,Sodexo Motivation Solutions U.K. ltd,240585, 414.15 ,Survey Response Incentive Vouchers,Large,Programme Expenditure
UK Statistics Family,Office for National Statistics,20/09/2022,Exp - Purchase Of Goods/Services - Incentive Payments,Survey Management,Sodexo Motivation Solutions U.K. ltd,240585, 510.60 ,Survey Response Incentive Vouchers,Large,Programme Expenditure
UK Statistics Family,Office for National Statistics,20/09/2022,Exp - Purchase Of Goods/Services - Incentive Payments,Covid Infection Survey,Sodexo Motivation Solutions U.K. ltd,240585," 52,428.90 ",Survey Response Incentive Vouchers,Large,Programme Expenditure
UK Statistics Family,Office for National Statistics,20/09/2022,Exp - Purchase Of Goods/Services - Incentive Payments,Survey Management,Sodexo Motivation Solutions U.K. ltd,240585," 40,844.97 ",Survey Response Incentive Vouchers,Large,Programme Expenditure
UK Statistics Family,Office for National Statistics,20/09/2022,Exp - Short-Term Contract & Agency Staff - Full Cost,Business Change Support,Talent International,240589," 13,440.00 ",Information Management Services,SME,Programme Expenditure
UK Statistics Family,Office for National Statistics,20/09/2022,Exp - Short-Term Contract & Agency Staff - Full Cost,Business Architecture Transformation And Statistical Strategy,Talent International,240589," 4,347.65 ",Information Management Services,SME,Programme Expenditure
UK Statistics Family,Office for National Statistics,20/09/2022,Exp - Purchase Of Goods/Services - Contractors,IT Operations,Talent International,240589," 28,800.00 ",Information Management Services,SME,Programme Expenditure
UK Statistics Family,Office for National Statistics,20/09/2022,Exp - Purchase Of Goods/Services - Contractors,DATA ENGINEERING OPERATIONS AND DELIVERY,Talent International,240589," 11,745.00 ",Information Management Services,SME,Programme Expenditure
UK Statistics Family,Office for National Statistics,20/09/2022,Exp - Purchase Of Goods/Services - Contractors,Data As A Service,Talent International,240589," 1,620.00 ",Information Management Services,SME,Programme Expenditure
UK Statistics Family,Office for National Statistics,21/09/2022,Exp - Short-Term Contract & Agency Staff - Full Cost,Business Change Support,Concept Information Technology Ltd T/A Concept Resourcing,240733," 8,223.16 ",Information Management Services,Large,Programme Expenditure
UK Statistics Family,Office for National Statistics,21/09/2022,Exp - Short-Term Contract & Agency Staff - Full Cost,Business Change Support,Concept Information Technology Ltd T/A Concept Resourcing,240733," 7,049.03 ",Information Management Services,Large,Programme Expenditure
UK Statistics Family,Office for National Statistics,21/09/2022,Exp - Short-Term Contract & Agency Staff - Full Cost,Business Change Support,Concept Information Technology Ltd T/A Concept Resourcing,240733," 3,216.91 ",Information Management Services,Large,Programme Expenditure
UK Statistics Family,Office for National Statistics,21/09/2022,Exp - Short-Term Contract & Agency Staff - Full Cost,Business Change Support,Concept Information Technology Ltd T/A Concept Resourcing,240733," 7,833.58 ",Information Management Services,Large,Programme Expenditure
UK Statistics Family,Office for National Statistics,21/09/2022,Exp - Short-Term Contract & Agency Staff - Full Cost,Business Change Support,Concept Information Technology Ltd T/A Concept Resourcing,240733," 8,042.29 ",Information Management Services,Large,Programme Expenditure
UK Statistics Family,Office for National Statistics,21/09/2022,Travel And Subsistence,CWT Trainline,Corporate Travel Management ,240736," 32,808.36 ",Travel and Accommodation,SME,Programme Expenditure
UK Statistics Family,Office for National Statistics,21/09/2022,Accommodation & Building Management,Interview Management IPS,Heathrow Airport,240737," 25,047.83 ",Rental Charges,Large,Programme Expenditure
UK Statistics Family,Office for National Statistics,21/09/2022,Office Related Goods And Services,Interview Management IPS,Heathrow Airport,240737, 14.40 ,Rental Charges,Large,Programme Expenditure
UK Statistics Family,Office for National Statistics,21/09/2022,"ICT Outsourcing, Maintenance And Support",IT Operations,Computacenter (Uk) Limited,240740," 43,329.24 ",Software Licenses,Large,Programme Expenditure
UK Statistics Family,Office for National Statistics,21/09/2022,Plant & Machinery At Cost - Additions,Survey Processing Centre,Xerox UK Limited,240746," 134,859.60 ",Leasing of Equipment,Large,Programme Expenditure
UK Statistics Family,Office for National Statistics,21/09/2022,Telecoms,IT Operations,Bt Global Services,240750," 25,699.67 ",Telecommunications,Large,Programme Expenditure
UK Statistics Family,Office for National Statistics,22/09/2022,FM Contract Payments,Vinci Payments,Vinci Construction UK Limited,240927," 50,874.35 ",Facilities Mangement Services,Large,Programme Expenditure
UK Statistics Family,Office for National Statistics,22/09/2022,Exp - Purchase Of Goods/Services - IT Contractual Services,IT Applications,Diegesis Limited,240938," 213,930.00 ",Information Management Services,Large,Programme Expenditure
UK Statistics Family,Office for National Statistics,22/09/2022,Exp - Purchase Of Goods/Services - Contractors,Tech Delivery Next Gen IT And Infrastructure,Talent International,240943," 13,931.40 ",Information Management Services,SME,Programme Expenditure
UK Statistics Family,Office for National Statistics,22/09/2022,Exp - Purchase Of Goods/Services - Contractors,IT Operations,Talent International,240943," 15,600.00 ",Information Management Services,SME,Programme Expenditure
UK Statistics Family,Office for National Statistics,23/09/2022,Exp - Purchase Of Goods/Services - Contractors,Data Architecture,Certes Computing Ltd,241060," 12,852.50 ",Information Management Services,SME,Programme Expenditure
UK Statistics Family,Office for National Statistics,23/09/2022,Exp - Purchase Of Goods/Services - Contractors,CDIO UNGP,Certes Computing Ltd,241060," 16,248.67 ",Information Management Services,SME,Programme Expenditure
UK Statistics Family,Office for National Statistics,23/09/2022,Exp - Purchase Of Goods/Services - Contractors,Strategy And Architecture,Certes Computing Ltd,241060," 1,800.00 ",Information Management Services,SME,Programme Expenditure
UK Statistics Family,Office for National Statistics,23/09/2022,Exp - Purchase Of Goods/Services - Contractors,Strategy And Architecture,Certes Computing Ltd,241060," 6,300.00 ",Information Management Services,SME,Programme Expenditure
UK Statistics Family,Office for National Statistics,23/09/2022,Exp - Purchase Of Goods/Services - Contractors,Tech Delivery Legacy Sp,Certes Computing Ltd,241060," 10,920.00 ",Information Management Services,SME,Programme Expenditure
UK Statistics Family,Office for National Statistics,23/09/2022,Exp - Purchase Of Goods/Services - Contractors,Testing,La International,241061," 5,094.71 ",Information Management Services,SME,Programme Expenditure
UK Statistics Family,Office for National Statistics,23/09/2022,Exp - Purchase Of Goods/Services - Contractors,Testing,La International,241061," 3,317.65 ",Information Management Services,SME,Programme Expenditure
UK Statistics Family,Office for National Statistics,23/09/2022,Exp - Purchase Of Goods/Services - Contractors,Consultancy Management,La International,241061," 3,588.30 ",Information Management Services,SME,Programme Expenditure
UK Statistics Family,Office for National Statistics,23/09/2022,Exp - Purchase Of Goods/Services - Contractors,Digital Publishing,La International,241061," 6,468.12 ",Information Management Services,SME,Programme Expenditure
UK Statistics Family,Office for National Statistics,23/09/2022,Exp - Purchase Of Goods/Services - Contractors,STRATEGY SYNTHESIS AND CO-ORDINATION,La International,241061," 3,156.90 ",Information Management Services,SME,Programme Expenditure
UK Statistics Family,Office for National Statistics,23/09/2022,Exp - Purchase Of Goods/Services - Contractors,Data Architecture,La International,241061," 3,981.18 ",Information Management Services,SME,Programme Expenditure
UK Statistics Family,Office for National Statistics,23/09/2022,Exp - Purchase Of Goods/Services - Contractors,Data Architecture,La International,241061," 3,424.94 ",Information Management Services,SME,Programme Expenditure
UK Statistics Family,Office for National Statistics,23/09/2022,Exp - Purchase Of Goods/Services - Contractors,Tech Delivery Legacy Sp,La International,241061," 4,165.02 ",Information Management Services,SME,Programme Expenditure
UK Statistics Family,Office for National Statistics,23/09/2022,Exp - Purchase Of Goods/Services - Contractors,Tech Delivery Next Gen IT And Infrastructure,La International,241061," 3,844.62 ",Information Management Services,SME,Programme Expenditure
UK Statistics Family,Office for National Statistics,23/09/2022,Exp - Purchase Of Goods/Services - Contractors,IT Applications,La International,241061," 9,771.44 ",Information Management Services,SME,Programme Expenditure
UK Statistics Family,Office for National Statistics,23/09/2022,Exp - Purchase Of Goods And Services Consultants,Digital Media,Methods Business & Digital Technology Ltd,241063," 134,220.00 ",Information Management Services,Large,Programme Expenditure
UK Statistics Family,Office for National Statistics,26/09/2022,Hosting,IT Operations,Crown Hosting Data Centres Limited,241160," 86,265.36 ",Information Management Services,SME,Programme Expenditure
UK Statistics Family,Office for National Statistics,26/09/2022,Exp - Purchase Of Goods And Services Consultants,INTEGRATED DATA STRATEGY AND DELIVERY,Deloitte,241164," 742,410.00 ",Information Management Services,Large,Programme Expenditure
UK Statistics Family,Office for National Statistics,26/09/2022,Exp - Purchase Of Goods/Services - Contractors,Testing,Parity Resources Limited,241174," 7,257.24 ",Information Management Services,Large,Programme Expenditure
UK Statistics Family,Office for National Statistics,26/09/2022,Exp - Purchase Of Goods/Services - Contractors,Programme Support,Parity Resources Limited,241174," 4,790.08 ",Information Management Services,Large,Programme Expenditure
UK Statistics Family,Office for National Statistics,26/09/2022,Exp - Short-Term Contract & Agency Staff - Full Cost,Recruitment ,Parity Resources Limited,241174, 673.20 ,Information Management Services,Large,Programme Expenditure
UK Statistics Family,Office for National Statistics,26/09/2022,Exp - Purchase Of Goods/Services - Contractors,Data Architecture,Parity Resources Limited,241174," 4,810.50 ",Information Management Services,Large,Programme Expenditure
UK Statistics Family,Office for National Statistics,26/09/2022,Exp - Purchase Of Goods/Services - Contractors,Strategy And Architecture,Parity Resources Limited,241174," 15,157.80 ",Information Management Services,Large,Programme Expenditure
UK Statistics Family,Office for National Statistics,26/09/2022,Exp - Purchase Of Goods/Services - Contractors,Strategy And Architecture,Parity Resources Limited,241174," 4,210.50 ",Information Management Services,Large,Programme Expenditure
UK Statistics Family,Office for National Statistics,26/09/2022,Exp - Purchase Of Goods/Services - Contractors,Tech Delivery Next Gen IT And Infrastructure,Parity Resources Limited,241174," 33,518.10 ",Information Management Services,Large,Programme Expenditure
UK Statistics Family,Office for National Statistics,27/09/2022,Exp - Purchase Of Goods/Services - Incentive Payments,Social Surveys Division,Natcen Social Research,241412," 30,294.60 ",Statistical Services,Large,Programme Expenditure
UK Statistics Family,Office for National Statistics,27/09/2022,Travel And Subsistence,CWT Trainline,Corporate Travel Management ,241415," 31,653.75 ",Travel and Accommodation,SME,Programme Expenditure
UK Statistics Family,Office for National Statistics,27/09/2022,Exp - Purchase Of Goods/Services - Contractors,Testing,La International,241417," 12,848.12 ",Information Management Services,SME,Programme Expenditure
UK Statistics Family,Office for National Statistics,27/09/2022,Exp - Purchase Of Goods/Services - Contractors,Testing,La International,241417," 3,317.65 ",Information Management Services,SME,Programme Expenditure
UK Statistics Family,Office for National Statistics,27/09/2022,Exp - Purchase Of Goods/Services - Contractors,Consultancy Management,La International,241417," 3,681.18 ",Information Management Services,SME,Programme Expenditure
UK Statistics Family,Office for National Statistics,27/09/2022,Exp - Purchase Of Goods/Services - Contractors,Consultancy Management,La International,241417," 3,588.30 ",Information Management Services,SME,Programme Expenditure
UK Statistics Family,Office for National Statistics,27/09/2022,Exp - Purchase Of Goods/Services - Contractors,Digital Publishing,La International,241417," 3,593.40 ",Information Management Services,SME,Programme Expenditure
UK Statistics Family,Office for National Statistics,27/09/2022,Exp - Purchase Of Goods/Services - Contractors,STRATEGY SYNTHESIS AND CO-ORDINATION,La International,241417," 2,209.84 ",Information Management Services,SME,Programme Expenditure
UK Statistics Family,Office for National Statistics,27/09/2022,Exp - Purchase Of Goods/Services - Contractors,Data Architecture,La International,241417," 10,484.97 ",Information Management Services,SME,Programme Expenditure
UK Statistics Family,Office for National Statistics,27/09/2022,Exp - Purchase Of Goods/Services - Contractors,Data Architecture,La International,241417," 3,424.94 ",Information Management Services,SME,Programme Expenditure
UK Statistics Family,Office for National Statistics,27/09/2022,Exp - Purchase Of Goods/Services - Contractors,IT Operations,La International,241417," 11,567.31 ",Information Management Services,SME,Programme Expenditure
UK Statistics Family,Office for National Statistics,28/09/2022,Exp - Purchase Of Goods/Services - Contractors,Strategy And Architecture,LA FOSSE ASSOCIATES LIMITED,241541," 42,504.00 ",Information Management Services,Large,Programme Expenditure
UK Statistics Family,Office for National Statistics,28/09/2022,Exp - Purchase Of Goods/Services - IT Contractual Services,Strategy And Architecture,Chaucer Group Ltd,241545," 30,650.64 ",Information Management Services,SME,Programme Expenditure
UK Statistics Family,Office for National Statistics,28/09/2022,Exp - Purchase Of Goods/Services - Contractors,INTEGRATED DATA STRATEGY AND DELIVERY,Malikshaw Interim & Executive,241556," 5,040.00 ",Information Management Services,SME,Programme Expenditure
UK Statistics Family,Office for National Statistics,28/09/2022,Exp - Purchase Of Goods/Services - Contractors,INTEGRATED DATA STRATEGY AND DELIVERY,Malikshaw Interim & Executive,241556," 15,126.67 ",Information Management Services,SME,Programme Expenditure
UK Statistics Family,Office for National Statistics,28/09/2022,Exp - Purchase Of Goods/Services - Contractors,Digital Delivery,Malikshaw Interim & Executive,241556," 33,436.80 ",Information Management Services,SME,Programme Expenditure
UK Statistics Family,Office for National Statistics,28/09/2022,Exp - Purchase Of Goods/Services - Incentive Payments,Survey Management,Sodexo Motivation Solutions U.K. ltd,241560," 24,323.80 ",Survey Response Incentive Vouchers,Large,Programme Expenditure
UK Statistics Family,Office for National Statistics,28/09/2022,Exp - Purchase Of Goods/Services - Incentive Payments,Survey Management,Sodexo Motivation Solutions U.K. ltd,241560, 85.26 ,Survey Response Incentive Vouchers,Large,Programme Expenditure
UK Statistics Family,Office for National Statistics,28/09/2022,Exp - Purchase Of Goods/Services - Incentive Payments,Best Practice And Impact,Sodexo Motivation Solutions U.K. ltd,241560, 878.27 ,Survey Response Incentive Vouchers,Large,Programme Expenditure
UK Statistics Family,Office for National Statistics,28/09/2022,Exp - Purchase Of Goods/Services - Incentive Payments,Interviewer Support,Sodexo Motivation Solutions U.K. ltd,241560," 3,661.28 ",Survey Response Incentive Vouchers,Large,Programme Expenditure
UK Statistics Family,Office for National Statistics,05/09/2022,Surveys,Covid Infection Survey,IQVIA Limited,30003745," 6,600,000.00 ",Statistical Services,Large,Programme Expenditure
UK Statistics Family,Office for National Statistics,08/09/2022,Exp - Purchase Of Goods/Services - Incentive Payments,Covid Infection Survey,Sodexo Motivation Solutions U.K. ltd,30003746," 1,029,006.06 ",Survey Response Incentive Vouchers,Large,Programme Expenditure
UK Statistics Family,Office for National Statistics,08/09/2022,Surveys,Covid Infection Survey,IQVIA Limited,30003747," 688,204.80 ",Statistical Services,Large,Programme Expenditure
UK Statistics Family,Office for National Statistics,16/09/2022,Electricity,Property Services,Edf Energy,30003753," 31,385.36 ",Utility Charges,Large,Programme Expenditure
UK Statistics Family,Office for National Statistics,20/09/2022,Exp - Purchase Of Goods/Services - Incentive Payments,Covid Infection Survey,Sodexo Motivation Solutions U.K. ltd,30003755," 933,081.33 ",Survey Response Incentive Vouchers,Large,Programme Expenditure
UK Statistics Family,Office for National Statistics,22/09/2022,Surveys,Covid Infection Survey,IQVIA Limited,30003759," 6,000,000.00 ",Statistical Services,Large,Programme Expenditure
UK Statistics Family,Office for National Statistics,22/09/2022,Exp - Purchase Of Goods/Services - Incentive Payments,Covid Infection Survey,Sodexo Motivation Solutions U.K. ltd,30003761," 619,627.11 ",Survey Response Incentive Vouchers,Large,Programme Expenditure
UK Statistics Family,Office for National Statistics,29/09/2022,Exp - Purchase Of Goods/Services - Incentive Payments,Covid Infection Survey,Sodexo Motivation Solutions U.K. ltd,30003771," 1,170,737.84 ",Survey Response Incentive Vouchers,Large,Programme Expenditure
UK Statistics Family,Office for National Statistics,29/09/2022,Surveys,Covid Infection Survey,IQVIA Limited,30003772," 1,033,660.61 ",Statistical Services,Large,Programme Expenditure
UK Statistics Family,Office for National Statistics,29/09/2022,Other Goods And Services,WIDER SURVEILLANCE STUDIES,London School of Hygiene & Tropical Medicine,30003773," 133,485.00 ",Statistical Services,Large,Programme Expenditure
UK Statistics Family,Office for National Statistics,29/09/2022,Surveys,Prices Division,Kantar Public UK Ltd.,30003774," 218,353.80 ",Statistical Services,SME,Programme Expenditure
UK Statistics Family,Office for National Statistics,30/09/2022,Surveys,Covid Infection Survey,IQVIA Limited,30003781," 842,850.60 ",Statistical Services,Large,Programme Expenditure
UK Statistics Family,Office for National Statistics,30/09/2022,Surveys,Covid Infection Survey,IQVIA Limited,30003782," 65,425.22 ",Statistical Services,Large,Programme Expenditure
UK Statistics Family,Office for National Statistics,30/09/2022,Surveys,Crime Statistics,Kantar Public UK Ltd.,30003783," 474,045.90 ",Statistical Services,SME,Programme Expenditure
UK Statistics Family,Office for National Statistics,30/09/2022,"ICT Outsourcing, Maintenance And Support",Researcher Support And Data Access ,Equiniti-TopLevel,30003784," 74,260.80 ",Information Management Services,SME,Programme Expenditure
,,,,,,," 27,978,719.59 ",,,
